fUSD/lending_fUSD_20260308
["ID","MTS","AMOUNT","RATE_DAILY","PERIOD"]
[407958203,1772928641567,-2720.925,0.00038666,52]
[407958204,1772928641576,-166.457,0.00038666,52]
[407958205,1772928641585,-154.35,0.0003885,2]
[407958206,1772928641595,-1999.0,0.00038904,120]
[407958207,1772928641604,-300.0,0.00039327,59]
[407958208,1772928641614,-4616.07218289,0.00039393,120]
[407958209,1772928641624,-1999.0,0.00039452,120]
[407958210,1772928641634,-504.0,0.000395,22]
[407958211,1772928641644,-1244.87,0.00039726,30]
[407958212,1772928641653,-1999.0,0.0004,120]
[407958213,1772928641663,-513.436343,0.00040091,120]
[407958214,1772928641673,-150.0,0.00040165,2]
[407958215,1772928641684,-7333.08764799,0.00040187,28]
[407958216,1772928641893,-577.97,0.000402,14]
[407958217,1772928641910,-1999.0,0.00040547,120]
[407958218,1772928641919,-619.0,0.00040846,2]
[407958219,1772928641928,-300.0,0.00040977,87]
[407958220,1772928641937,-1999.0,0.00041095,120]
[407958221,1772928641948,-232.199121,0.00041096,120]
[407958222,1772928641957,-157.227385,0.00041096,120]
[407958223,1772928641968,-151.0,0.00041096,120]
[407958224,1772928641978,-200.805006,0.00041096,120]
[407958225,1772928641988,-204.88064,0.00041096,120]
[407958226,1772928641998,-171.758612,0.00041096,120]
[407958227,1772928642010,-151.0,0.00041096,120]
[407958228,1772928642020,-151.0,0.00041096,120]
[407958229,1772928642029,-151.0,0.00041096,120]
[407958230,1772928642038,-151.0,0.00041096,120]
[407958231,1772928642049,-151.0,0.00041096,120]
[407958232,1772928642058,-1999.0,0.00041643,120]
[407958233,1772928642067,-200.0,0.00041691,120]
[407958234,1772928642077,-4521.48080046,0.00042,20]
[407958235,1772928642087,-186.0368437,0.00042082,2]
[407958236,1772928642096,-150.0,0.00042173,120]
[407958237,1772928642106,-152.0,0.00042182,3]
[407958238,1772928642115,-300.0,0.00042185,97]
[407958239,1772928642125,-1999.0,0.00042191,120]
[407958240,1772928642134,-847.0,0.00042191,120]
[407958241,1772928642144,-500.0,0.00042438,120]
[407958242,1772928642153,-300.0,0.00042452,2]
[407958243,1772928642162,-300.0,0.00042452,2]
[407958244,1772928642172,-300.0,0.00042452,2]
[407958245,1772928642181,-1084.72444425,0.00042452,2]
[407958246,1772928642190,-300.0,0.00042452,2]
[407958247,1772928642199,-300.0,0.00042452,2]
[407958248,1772928642209,-300.0,0.00042452,2]
[407958249,1772928642218,-300.0,0.00042452,2]
[407958250,1772928642228,-300.0,0.00042452,2]
[407958251,1772928642237,-300.0,0.00042452,2]
[407958252,1772928642249,-1048.99623049,0.00042452,2]
[407958253,1772928642259,-856.54643746,0.00042452,2]
[407958254,1772928642269,-494.20103728,0.00042452,2]
[407958255,1772928642279,-300.0,0.00042452,2]
[407958256,1772928642288,-442.39800754,0.00042452,2]
[407958257,1772928642298,-509.70389573,0.00042452,2]
[407958258,1772928642307,-308.03022305,0.00042452,2]
[407958259,1772928642317,-300.0,0.00042452,2]
[407958260,1772928642328,-300.0,0.00042452,2]
[407958261,1772928642337,-459.60835984,0.00042452,2]
[407958262,1772928642347,-300.00000001,0.00042452,2]
[407958263,1772928642356,-300.0,0.00042452,2]
[407958264,1772928642366,-372.31395782,0.00042452,2]
[407958265,1772928642376,-300.0,0.00042452,2]
[407958266,1772928642385,-302.12694182,0.00042452,2]
[407958267,1772928642395,-300.0,0.00042452,2]
[407958268,1772928642405,-300.0,0.00042452,2]
[407958269,1772928642414,-300.0,0.00042452,2]
[407958270,1772928642423,-519.87184079,0.00042452,2]
[407958271,1772928642433,-306.98881472,0.00042452,2]
[407958272,1772928642442,-300.0,0.00042452,2]
[407958273,1772928642451,-300.0,0.00042452,2]
[407958274,1772928642461,-300.0,0.00042452,2]
[407958275,1772928642470,-415.85804326,0.00042452,2]
[407958276,1772928642480,-300.0,0.00042452,2]
[407958277,1772928642489,-300.0,0.00042452,2]
[407958278,1772928642499,-300.0,0.00042452,2]
[407958279,1772928642508,-300.0,0.00042452,2]
[407958280,1772928642518,-300.0,0.00042452,2]
[407958281,1772928642528,-300.0,0.00042452,2]
[407958282,1772928642537,-300.0,0.00042452,2]
[407958283,1772928642547,-306.76170033,0.00042452,2]
[407958284,1772928642556,-300.0,0.00042452,2]
[407958285,1772928642566,-300.0,0.00042452,2]
[407958286,1772928642575,-300.0,0.00042452,2]
[407958287,1772928642585,-300.0,0.00042452,2]
[407958288,1772928642595,-300.0,0.00042452,2]
[407958289,1772928642605,-300.0,0.00042452,2]
[407958290,1772928642614,-1129.09,0.000425,120]
[407958291,1772928642624,-222.59,0.00042546,120]
[407958292,1772928642633,-500.0,0.00042575,120]
[407958293,1772928642642,-1244.87,0.00042661,120]
[407958294,1772928642651,-500.0,0.00042712,120]
[407958295,1772928642660,-847.0,0.00042739,120]
[407958296,1772928642670,-1999.0,0.00042739,120]
[407958297,1772928642679,-4000.0,0.0004274,14]
[407958298,1772928642689,-161.0,0.00042808,16]
[407958299,1772928642698,-578.74580108,0.00042849,120]
[407958300,1772928642707,-300.02,0.00043068,120]
[407958301,1772928642717,-300.0,0.00043068,120]
[407958302,1772928642726,-300.0,0.00043068,120]
[407958303,1772928642736,-300.0,0.00043068,120]
[407958304,1772928642745,-300.0,0.00043068,120]
[407958305,1772928642754,-163.71,0.00043068,120]
[407958306,1772928642764,-172.81,0.000431,14]
[407958307,1772928642773,-847.0,0.00043287,120]
[407958308,1772928642782,-1999.0,0.00043287,120]
[407958309,1772928642792,-200.0,0.00043291,120]
[407958310,1772928642801,-847.0,0.00043835,120]
[407958311,1772928642811,-500.0,0.00043835,120]
[407958313,1772928642820,-1442.52092042,0.00043835,120]
[407958314,1772928642829,-150.0,0.00044,57]
[407958315,1772928642839,-504.0,0.00044,26]
[407958316,1772928642848,-500.0,0.00044246,120]
[407958317,1772928642858,-150.0,0.00044281,120]
[407958318,1772928642867,-577.97,0.000443,14]
[407958319,1772928642877,-867.1,0.00044333,120]
[407958320,1772928642886,-847.0,0.00044383,120]
[407958321,1772928642895,-500.0,0.00044411,2]
[407958322,1772928642904,-242.054553,0.00044588,30]
[407958323,1772928642914,-500.0,0.00044657,120]
[407958324,1772928642923,-7333.08764799,0.0004484,28]
[407958325,1772928642933,-847.0,0.00044931,120]
[407958327,1772928642941,-1043.0,0.00044981,120]
[407958328,1772928642951,-1695.47736404,0.00045,120]
[407958329,1772928642960,-237.41052374,0.00045,30]
[407958330,1772928642968,-500.0,0.00045068,120]
[407958331,1772928642977,-150.0,0.00045424,120]
[407958332,1772928642987,-150.0,0.00045435,120]
[407958333,1772928642996,-847.0,0.00045479,120]
[407958334,1772928643006,-500.0,0.00045479,120]
[407958335,1772928643020,-1244.87,0.00045597,120]
[407958336,1772928643029,-1043.0,0.00045628,120]
[407958337,1772928643039,-150.0,0.00045744,120]
[407958338,1772928643048,-150.0,0.00045778,120]
[407958339,1772928643058,-500.0,0.0004589,120]
[407958340,1772928643067,-5000.0,0.00046,30]
[407958341,1772928643077,-847.0,0.00046027,120]
[407958342,1772928643089,-1852.83573053,0.00046157,18]
[407958343,1772928643099,-1043.0,0.00046276,120]
[407958344,1772928643108,-500.0,0.00046301,120]
[407958345,1772928643117,-1000.0,0.00046314,30]
[407958346,1772928643127,-597.98311845,0.00046358,23]
[407958347,1772928643136,-150.0,0.00046383,120]
[407958348,1772928643145,-150.0,0.00046495,120]
[407958349,1772928643154,-25042.16,0.00046562,7]
[407958350,1772928643163,-847.0,0.00046575,120]
[407958351,1772928643173,-500.0,0.00046575,2]
[407958352,1772928643182,-500.0,0.00046575,2]
[407958353,1772928643191,-500.0,0.00046575,2]
[407958354,1772928643201,-500.0,0.00046575,2]
[407958355,1772928643211,-500.0,0.00046575,2]
[407958356,1772928643220,-500.0,0.00046575,2]
[407958357,1772928643229,-500.0,0.00046575,2]
[407958358,1772928643239,-500.0,0.00046575,2]
[407958359,1772928643248,-500.0,0.00046575,2]
[407958360,1772928643258,-500.0,0.00046575,2]
[407958361,1772928643267,-300.0,0.00046575,2]
[407958362,1772928643277,-300.0,0.00046575,2]
[407958363,1772928643286,-300.0,0.00046575,2]
[407958364,1772928643296,-300.0,0.00046575,2]
[407958365,1772928643305,-300.0,0.00046575,2]
[407958366,1772928643315,-300.0,0.00046575,2]
[407958367,1772928643324,-300.0,0.00046575,2]
[407958368,1772928643333,-300.0,0.00046575,2]
[407958369,1772928643342,-300.0,0.00046575,2]
[407958370,1772928643352,-300.0,0.00046575,2]
[407958371,1772928643361,-300.0,0.00046575,2]
[407958372,1772928643370,-300.0,0.00046575,2]
[407958373,1772928643379,-300.38319783,0.00046575,2]
[407958374,1772928643389,-1999.0,0.00046588,30]
[407958375,1772928643398,-2000.0,0.000466,2]
[407958376,1772928643407,-2000.0,0.000466,2]
[407958377,1772928643417,-356.080808,0.00046624,120]
[407958378,1772928643427,-500.0,0.00046712,120]
[407958379,1772928643436,-150.1,0.00046807,3]
[407958380,1772928643445,-150.1,0.00046807,3]
[407958381,1772928643454,-1043.0,0.00046923,120]
[407958382,1772928643463,-5000.0,0.00047,30]
[407958383,1772928643473,-15851.53334612,0.00047,120]
[407958384,1772928643482,-4616.07218289,0.00047061,120]
[407958385,1772928643492,-150.0,0.00047061,30]
[407958386,1772928643501,-158.22178593,0.00047061,30]
[407958387,1772928643511,-1889.11386187,0.00047104,2]
[407958388,1772928643520,-186.0368437,0.00047118,4]
[407958389,1772928643529,-377.41,0.00047123,120]
[407958390,1772928643539,-500.0,0.00047123,120]
[407958391,1772928643548,-960.46,0.00047135,2]
[407958392,1772928643558,-151.0,0.00047161,60]
[407958393,1772928643567,-151.0,0.00047161,30]
[407958394,1772928643576,-151.0,0.00047161,120]
[407958395,1772928643586,-151.0,0.00047161,120]
[407958396,1772928643595,-151.0,0.00047161,120]
[407958397,1772928643605,-151.0,0.00047161,120]
[407958398,1772928643614,-151.0,0.00047161,120]
[407958399,1772928643624,-151.0,0.00047161,60]
[407958400,1772928643633,-500.0,0.00047161,120]
[407958401,1772928643642,-895.19,0.00047161,22]
[407958402,1772928643651,-895.19,0.00047161,22]
[407958403,1772928643661,-895.19,0.00047161,22]
[407958404,1772928643670,-895.19,0.00047161,22]
[407958405,1772928643679,-895.19,0.00047161,22]
[407958406,1772928643688,-895.19,0.00047161,22]
[407958407,1772928643697,-895.19,0.00047161,22]
[407958408,1772928643706,-895.19,0.00047161,22]
[407958409,1772928643715,-895.19,0.00047161,22]
[407958410,1772928643724,-895.19,0.00047161,22]
[407958411,1772928643733,-895.19,0.00047161,22]
[407958412,1772928643743,-895.19,0.00047161,22]
[407958413,1772928643752,-895.19,0.00047161,22]
[407958414,1772928643761,-895.19,0.00047161,22]
[407958415,1772928643770,-895.19,0.00047161,22]
[407958416,1772928643779,-895.19,0.00047161,22]
[407958417,1772928643788,-895.19,0.00047161,22]
[407958418,1772928643797,-895.19,0.00047161,22]
[407958419,1772928643807,-895.19,0.00047161,22]
[407958420,1772928643815,-895.19,0.00047161,22]
[407958421,1772928643824,-895.19,0.00047161,22]
[407958422,1772928643834,-895.19,0.00047161,22]
[407958423,1772928643843,-895.19,0.00047161,22]
[407958424,1772928643852,-895.41358924,0.00047161,22]
[407958425,1772928643861,-155.0,0.00047161,2]
[407958426,1772928643870,-155.0,0.00047161,2]
[407958427,1772928643879,-155.0,0.00047161,2]
[407958428,1772928643888,-155.0,0.00047161,2]
[407958429,1772928643899,-155.0,0.00047161,2]
[407958430,1772928643908,-155.0,0.00047161,2]
[407958431,1772928643917,-252.67522445,0.00047161,120]
[407958432,1772928643926,-500.0,0.00047161,120]
[407958433,1772928643935,-597.51,0.00047161,120]
[407958434,1772928643944,-507.72825556,0.00047161,30]
[407958435,1772928643954,-245647.74069854,0.00047161,30]
[407958436,1772928643963,-411.46407912,0.00047161,120]
[407958437,1772928643972,-20465.67258241,0.00047161,2]
[407958438,1772928643981,-500.0,0.00047161,120]
[407958439,1772928643991,-500.0,0.00047161,120]
[407958440,1772928644000,-300.0,0.00047161,120]
[407958441,1772928644010,-500.0,0.00047161,120]
[407958442,1772928644024,-499.87281004,0.00047161,120]
[407958443,1772928644033,-3511.53,0.00047161,30]
[407958444,1772928644042,-833.33,0.00047161,120]
[407958445,1772928644051,-833.33,0.00047161,120]
[407958446,1772928644062,-833.33,0.00047161,120]
[407958447,1772928644072,-833.33,0.00047161,120]
[407958448,1772928644081,-833.33,0.00047161,120]
[407958449,1772928644091,-833.33,0.00047161,120]
[407958450,1772928644101,-833.33,0.00047161,120]
[407958451,1772928644110,-833.33,0.00047161,120]
[407958452,1772928644120,-833.33,0.00047161,120]
[407958453,1772928644129,-833.33,0.00047161,120]
[407958454,1772928644139,-833.33,0.00047161,120]
[407958455,1772928644149,-833.33,0.00047161,120]
[407958456,1772928644159,-833.33,0.00047161,120]
[407958457,1772928644169,-833.33,0.00047161,120]
[407958458,1772928644178,-833.33,0.00047161,120]
[407958459,1772928644189,-833.33,0.00047161,120]
[407958460,1772928644199,-833.33,0.00047161,120]
[407958461,1772928644209,-833.33,0.00047161,120]
[407958462,1772928644218,-833.33,0.00047161,120]
[407958463,1772928644230,-833.33,0.00047161,120]
[407958464,1772928644239,-833.33,0.00047161,120]
[407958465,1772928644249,-833.33,0.00047161,120]
[407958466,1772928644261,-833.33,0.00047161,120]
[407958467,1772928644273,-833.41,0.00047161,120]
[407958468,1772928644282,-202.54,0.00047161,30]
[407958469,1772928644292,-474.08,0.00047161,30]
[407958470,1772928644302,-632.83,0.00047161,30]
[407958471,1772928644311,-563.2,0.00047161,30]
[407958472,1772928644320,-181.98,0.00047161,30]
[407958473,1772928644329,-200.0,0.00047161,120]
[407958474,1772928644338,-3432.01,0.00047161,120]
[407958475,1772928644347,-3432.01,0.00047161,120]
[407958476,1772928644357,-3432.01,0.00047161,120]
[407958477,1772928644368,-3432.01,0.00047161,120]
[407958478,1772928644378,-3432.01,0.00047161,120]
[407958479,1772928644388,-3432.01,0.00047161,120]
[407958480,1772928644398,-3432.01,0.00047161,120]
[407958481,1772928644409,-3432.01,0.00047161,120]
[407958482,1772928644419,-3432.01,0.00047161,120]
[407958483,1772928644430,-3432.01,0.00047161,120]
[407958484,1772928644440,-3432.01,0.00047161,120]
[407958485,1772928644451,-3432.01,0.00047161,120]
[407958486,1772928644460,-3432.01,0.00047161,120]
[407958487,1772928644471,-3432.01,0.00047161,120]
[407958488,1772928644481,-3432.01,0.00047161,120]
[407958489,1772928644491,-3432.01,0.00047161,120]
[407958490,1772928644501,-3432.01,0.00047161,120]
[407958491,1772928644512,-3432.01,0.00047161,120]
[407958492,1772928644521,-3432.01,0.00047161,120]
[407958493,1772928644531,-3432.01,0.00047161,120]
[407958494,1772928644539,-3.97283486,0.00047161,120]
[407958495,1772928644689,-1924.23565072,0.00028393,2]
[407958496,1772928644703,-473.93335833,0.00028393,2]
[407958497,1772928644716,-1348.83099095,0.00028393,2]
[407958498,1772928644726,-3377.54855575,0.00031393,2]
[407958499,1772928644740,-369.45144425,0.00031393,2]
[407958500,1772928644750,-3428.03716514,0.00047161,120]
[407958501,1772928644759,-2575.97584115,0.00047161,120]
[407958502,1772928644912,-18023.66146998,0.00019211,2]
[407958503,1772928644927,-21728.68826162,0.00019211,2]
[407958504,1772928644939,-213.04,0.00028577,2]
[407958505,1772928644951,-1198.05,0.00034393,2]
[407958506,1772928644963,-302.0,0.000372,30]
[407958507,1772928644975,-213.04,0.00037736,14]
[407958508,1772928644986,-12511.99,0.00037743,10]
[407958509,1772928644997,-1434.16,0.000445,120]
[407958510,1772928645010,-1434.16,0.00044774,120]
[407958511,1772928645022,-1223.95,0.00045,30]
[407958512,1772928645032,-750.7,0.00045,30]
[407958513,1772928645042,-304.7,0.00045,30]
[407958514,1772928645053,-1434.16,0.00045048,120]
[407958515,1772928645068,-1852.83573048,0.00046157,18]
[407958516,1772928645084,-856.03415885,0.00047161,120]
[407958517,1772928645095,-3432.01,0.00047161,120]
[407958518,1772928645106,-3432.23061106,0.00047161,120]
[407958519,1772928645116,-1188.94,0.00047161,30]
[407958520,1772928645127,-1188.94,0.00047161,30]
[407958521,1772928645139,-1188.94,0.00047161,30]
[407958522,1772928645152,-1188.94,0.00047161,30]
[407958523,1772928645163,-1188.94,0.00047161,30]
[407958524,1772928645175,-1188.94,0.00047161,30]
[407958525,1772928645186,-1188.94,0.00047161,30]
[407958526,1772928645199,-1188.94,0.00047161,30]
[407958527,1772928645211,-1188.94,0.00047161,30]
[407958528,1772928645224,-1188.94,0.00047161,30]
[407958529,1772928645236,-991.40756299,0.00047161,30]
[407958530,1772928645255,-197.53243701,0.00047161,30]
[407958531,1772928645266,-1188.94,0.00047161,30]
[407958532,1772928645277,-1188.94,0.00047161,30]
[407958534,1772928645287,-1188.94,0.00047161,30]
[407958536,1772928645298,-1188.94,0.00047161,30]
[407958538,1772928645309,-1188.94,0.00047161,30]
[407958540,1772928645321,-1188.94,0.00047161,30]
[407958541,1772928645331,-1188.94,0.00047161,30]
[407958542,1772928645343,-1188.94,0.00047161,30]
[407958543,1772928645354,-1188.94,0.00047161,30]
[407958544,1772928645366,-1188.94,0.00047161,30]
[407958545,1772928645377,-1188.94,0.00047161,30]
[407958546,1772928645389,-1188.94,0.00047161,30]
[407958547,1772928645401,-1189.06330114,0.00047161,30]
[407958548,1772928645414,-1223.95,0.0004725,30]
[407958549,1772928645425,-750.7,0.0004725,30]
[407958550,1772928645437,-7363.41205091,0.00047276,24]
[407958551,1772928645448,-5000.0,0.00047276,24]
[407958552,1772928645460,-500.0,0.00047534,120]
[407958553,1772928645473,-1043.0,0.00047571,120]
[407958554,1772928645488,-150.0,0.00047693,120]
[407958555,1772928645500,-3015.78,0.000478,120]
[407958556,1772928645513,-577.97,0.000479,14]
[407958557,1772928645524,-500.0,0.00047945,120]
[407958558,1772928645538,-4492.93247052,0.00048,120]
[407958559,1772928645548,-185.0,0.00048,90]
[407958560,1772928645559,-150.0,0.00048348,120]
[407958561,1772928645569,-500.0,0.00048356,60]
[407958562,1772928645580,-500.0,0.00048356,60]
[407958563,1772928645591,-500.0,0.00048356,60]
[407958564,1772928645602,-500.0,0.00048356,120]
[407958565,1772928645612,-185.0,0.00048356,90]
[407958566,1772928645622,-1658.67219977,0.000485,2]
[407958567,1772928645633,-504.0,0.000485,31]
[407958568,1772928645643,-150.0,0.00048505,120]
[407958569,1772928645655,-1244.87,0.00048532,120]
[407958570,1772928645665,-554.98,0.00048639,120]
[407958571,1772928645675,-3015.78,0.00048695,120]
[407958572,1772928645686,-500.0,0.00048767,120]
[407958575,1772928645698,-150.0,0.0004882,120]
[407958577,1772928645710,-350.0,0.00048866,12]
[407958578,1772928645720,-700.0,0.00048933,12]
[407958579,1772928645731,-150.0,0.00049,120]
[407958580,1772928645741,-157.14520213,0.00049,120]
[407958581,1772928645751,-150.0,0.00049,120]
[407958582,1772928645762,-150.0,0.00049,120]
[407958583,1772928645772,-150.0,0.00049,120]
[407958584,1772928645782,-500.0,0.00049,60]
[407958585,1772928645793,-500.0,0.00049,30]
[407958586,1772928645803,-500.0,0.00049,30]
[407958587,1772928645814,-500.0,0.00049,30]
[407958588,1772928645824,-500.0,0.00049,30]
[407958589,1772928645833,-500.0,0.00049,30]
[407958590,1772928645843,-500.0,0.00049,30]
[407958591,1772928645852,-500.0,0.00049,30]
[407958592,1772928645861,-328.64674045,0.00049,30]
[407958593,1772928645871,-400.51528796,0.00049178,120]
[407958594,1772928645881,-150.0,0.00049196,120]
[407958595,1772928645891,-1658.67219977,0.00049244,2]
[407958596,1772928645900,-4095.80130353,0.0004929,120]
[407958597,1772928645909,-3000.0,0.00049296,120]
[407958598,1772928645920,-500.0,0.00049452,60]
[407958599,1772928645930,-500.0,0.00049452,60]
[407958600,1772928645941,-500.0,0.00049452,60]
[407958601,1772928645951,-7333.08764799,0.00049494,28]
[407958602,1772928645963,-435.11,0.000495,120]
[407958603,1772928645977,-5000.0,0.000495,120]
[407958604,1772928645986,-5000.0,0.000495,120]
[407958605,1772928645996,-5779.0,0.00049544,7]
[407958606,1772928646006,-4888.0,0.00049544,7]
[407958607,1772928646018,-3015.78,0.0004959,120]
[407958608,1772928646028,-151.0,0.00049591,120]
[407958609,1772928646038,-300.0,0.00049593,30]
[407958610,1772928646048,-666.0,0.00049593,30]
[407958611,1772928646058,-12892.2644987,0.00049594,2]
[407958612,1772928646069,-114226.91592263,0.00049594,2]
[407958613,1772928646082,-61939.42749637,0.00049594,2]
[407958614,1772928646094,-151.0,0.00049594,120]
[407958615,1772928646105,-6073.47729622,0.00049594,2]
[407958616,1772928646118,-1082.08232065,0.00049594,2]
[407958617,1772928646130,-478.51655685,0.00049594,2]
[407958618,1772928646143,-1160.32529984,0.00049594,2]
[407958619,1772928646336,-250.0,0.0001982,2]
[407958620,1772928646347,-213.04,0.00042429,14]
[407958621,1772928646357,-304.7,0.0004725,30]
[407958622,1772928646367,-213.04,0.00047582,14]
[407958623,1772928646378,-213.04,0.00048041,14]
[407958624,1772928646389,-85201.67923383,0.00049594,2]
[407958625,1772928646409,-403.0,0.00047161,60]
[407958626,1772928646420,-1363.78126576,0.00049594,2]
[407958627,1772928646446,-6104.51503018,0.00019555,2]
[407958631,1772929831561,-336.62,0.00015471,2]
[407958632,1772929831571,-664.49638947,0.00015471,2]
[407958633,1772929831583,-278.33361053,0.00015471,2]
[407958634,1772929831592,-400.0,0.000156,5]
[407958635,1772929831602,-800.0,0.000157,5]
[407958636,1772929831611,-250.0,0.00015731,2]
[407958637,1772929831621,-1300.0,0.000158,5]
[407958638,1772929831630,-629.31713582,0.0001589,2]
[407958639,1772929831645,-1370.68286418,0.0001589,2]
[407958640,1772929831655,-1200.0,0.00015899,2]
[407958641,1772929831665,-1700.0,0.000159,5]
[407958642,1772929831674,-199.0,0.00016063,2]
[407958643,1772929831683,-166.66,0.00016064,2]
[407958644,1772929831693,-500.0,0.00016073,2]
[407958645,1772929831702,-300.0,0.00016097,2]
[407958646,1772929831712,-31191.42828228,0.00016099,2]
[407958647,1772929831721,-1762.27514874,0.000161,2]
[407958648,1772929831730,-1967.2293634,0.00016121,2]
[407958649,1772929831741,-784.54454562,0.00016121,2]
[407958650,1772929831752,-488.22609098,0.00016121,2]
[407958651,1772929831761,-216.34695217,0.00016173,2]
[407958652,1772929831772,-96.16111595,0.00016173,2]
[407958653,1772929831781,-4236.4758086,0.00016195,2]
[407958654,1772929831790,-550.0,0.00016196,2]
[407958655,1772929831800,-151974.41415183,0.00016197,2]
[407958656,1772929831810,-2500.0,0.000162,2]
[407958657,1772929831819,-220.0,0.00016285,2]
[407958659,1772929831828,-500.0,0.00016298,2]
[407958662,1772929831841,-500.0,0.00016298,2]
[407958664,1772929831851,-533.17834109,0.00016298,2]
[407958666,1772929831859,-499.99999999,0.00016298,2]
[407958668,1772929831869,-6748.378,0.00016299,2]
[407958670,1772929831877,-1401.32464723,0.000163,2]
[407958672,1772929831886,-1494.47,0.000163,2]
[407958673,1772929831895,-6618.41474921,0.000163,2]
[407958674,1772929831905,-5000.0,0.000163,2]
[407958675,1772929831914,-2135.72718135,0.000163,2]
[407958676,1772929831924,-916.27139176,0.000163,2]
[407958677,1772929831933,-437.62552774,0.000163,2]
[407958678,1772929831942,-2472.547766,0.000163,2]
[407958679,1772929831951,-1162.79307464,0.000163,2]
[407958680,1772929831960,-652.0,0.0001632,2]
[407958681,1772929831969,-1007.53552374,0.00016327,2]
[407958682,1772929831978,-544.0,0.00016384,2]
[407958683,1772929831987,-2720.925,0.00016384,2]
[407958684,1772929831996,-166.457,0.00016384,2]
[407958685,1772929832005,-194.53489522,0.0001639,2]
[407958686,1772929832015,-151.0,0.0001639,2]
[407958687,1772929832024,-151.0,0.0001639,2]
[407958688,1772929832035,-151.0,0.0001639,2]
[407958689,1772929832045,-151.0,0.0001639,2]
[407958690,1772929832054,-151.0,0.0001639,2]
[407958691,1772929832063,-151.0,0.0001639,2]
[407958692,1772929832072,-151.0,0.0001639,2]
[407958693,1772929832081,-151.0,0.0001639,2]
[407958694,1772929832091,-151.0,0.0001639,2]
[407958695,1772929832110,-151.0,0.0001639,2]
[407958696,1772929832119,-151.0,0.0001639,2]
[407958697,1772929832128,-151.0,0.0001639,2]
[407958698,1772929832137,-151.0,0.0001639,2]
[407958699,1772929832146,-151.0,0.0001639,2]
[407958700,1772929832156,-151.0,0.0001639,2]
[407958701,1772929832165,-151.0,0.0001639,2]
[407958702,1772929832174,-151.0,0.00016397,2]
[407958703,1772929832183,-151.0,0.00016397,2]
[407958704,1772929832193,-500.0,0.00016399,2]
[407958705,1772929832202,-500.0,0.00016399,2]
[407958706,1772929832211,-500.0,0.00016399,2]
[407958707,1772929832220,-500.0,0.00016399,2]
[407958708,1772929832229,-500.0,0.00016399,2]
[407958709,1772929832239,-500.0,0.00016399,2]
[407958710,1772929832248,-500.0,0.00016399,2]
[407958711,1772929832257,-500.0,0.00016399,2]
[407958712,1772929832266,-500.0,0.00016399,2]
[407958713,1772929832275,-500.0,0.00016399,2]
[407958714,1772929832285,-500.0,0.00016399,2]
[407958715,1772929832294,-500.0,0.00016399,2]
[407958716,1772929832304,-500.0,0.00016399,2]
[407958717,1772929832313,-500.0,0.00016399,2]
[407958718,1772929832322,-500.0,0.00016399,2]
[407958719,1772929832332,-500.0,0.00016399,2]
[407958720,1772929832344,-500.0,0.00016399,2]
[407958721,1772929832354,-500.0,0.00016399,2]
[407958722,1772929832363,-500.0,0.00016399,2]